[Event "Titled Tuesday Blitz June 20 Early 2023"]
[White "Nikulina, Alena"]
[Black "Zaichenko, Daria"]
[WhiteFideId "4172051"]
[BlackFideId "4197453"]
[WhiteElo "1608"]
[BlackElo "2039"]
[Result "0-1"]
[Round "9"]
[TimeControl "180+2"]
[Date "2023.06.20"]
[WhiteClock "0:00:17"]
[BlackClock "0:00:55"]
[Board "154"]

1. e4 {[%clk 0:03:00]}  c5 {[%clk 0:02:59]} 2. Nf3 {[%clk 0:02:55]}  Nc6 {[%clk 0:02:59]} 3. d4 {[%clk 0:02:54]}  cxd4 {[%clk 0:02:59]} 4. Nxd4 {[%clk 0:02:54]}  Nf6 {[%clk 0:02:59]} 5. Nc3 {[%clk 0:02:54]}  d6 {[%clk 0:03:00]} 6. Be2 {[%clk 0:02:53]}  e5 {[%clk 0:02:50]} 7. Nb3 {[%clk 0:02:32]}  Be6 {[%clk 0:02:47]} 8. O-O {[%clk 0:02:30]}  d5 {[%clk 0:02:41]} 9. exd5 {[%clk 0:02:29]}  Nxd5 {[%clk 0:02:40]} 10. Nxd5 {[%clk 0:02:12]}  Bxd5 {[%clk 0:02:38]} 11. Be3 {[%clk 0:02:05]}  Be7 {[%clk 0:02:36]} 12. c4 {[%clk 0:01:46]}  Be6 {[%clk 0:02:34]} 13. Qc2 {[%clk 0:01:46]}  O-O {[%clk 0:02:33]} 14. Rad1 {[%clk 0:01:43]}  Qc7 {[%clk 0:02:31]} 15. a3 {[%clk 0:01:39]}  f5 {[%clk 0:02:28]} 16. Bc5 {[%clk 0:01:13]}  a5 {[%clk 0:02:14]} 17. Bxe7 {[%clk 0:01:10]}  Qxe7 {[%clk 0:02:12]} 18. Rd2 {[%clk 0:00:59]}  a4 {[%clk 0:02:10]} 19. Nc1 {[%clk 0:00:59]}  Nd4 {[%clk 0:02:10]} 20. Qd3 {[%clk 0:00:57]}  Rac8 {[%clk 0:02:09]} 21. b3 {[%clk 0:00:51]}  axb3 {[%clk 0:02:06]} 22. Qb1 {[%clk 0:00:39]}  Qxa3 {[%clk 0:02:01]} 23. Bd1 {[%clk 0:00:32]}  Bxc4 {[%clk 0:01:30]} 24. Bxb3 {[%clk 0:00:32]}  Nxb3 {[%clk 0:01:20]} 25. Nxb3 {[%clk 0:00:25]}  Qxb3 {[%clk 0:01:13]} 26. Qxb3 {[%clk 0:00:21]}  Bxb3 {[%clk 0:01:13]} 27. Rb1 {[%clk 0:00:22]}  Rc7 {[%clk 0:01:03]} 28. f3 {[%clk 0:00:21]}  Bc4 {[%clk 0:01:01]} 29. Rdb2 {[%clk 0:00:20]}  b5 {[%clk 0:01:01]} 30. Rd2 {[%clk 0:00:20]}  Ra8 {[%clk 0:00:59]} 31. Rd6 {[%clk 0:00:18]}  Kf7 {[%clk 0:00:58]} 32. h3 {[%clk 0:00:19]}  Ke7 {[%clk 0:00:58]} 33. Rb6 {[%clk 0:00:20]}  Ra2 {[%clk 0:00:57]} 34. Rb8 {[%clk 0:00:20]}  Rd7 {[%clk 0:00:57]} 35. Kh2 {[%clk 0:00:18]}  Rdd2 {[%clk 0:00:56]} 36. Rg1 {[%clk 0:00:19]}  Bd5 {[%clk 0:00:55]} 37. Rb7+ {[%clk 0:00:17]}  Bxb7 {[%clk 0:00:55]} 0-1


[Site "https://www.chess.com"]

[Event "Titled Tuesday Blitz June 20 Early 2023"]
[White "Thiel, Thomas"]
[Black "Semenova, Alina"]
[WhiteFideId "4615964"]
[BlackFideId "24113875"]
[WhiteElo "2226"]
[BlackElo "1833"]
[Result "0-1"]
[Round "9"]
[TimeControl "180+2"]
[Date "2023.06.20"]
[WhiteClock "0:01:22"]
[BlackClock "0:01:19"]
[Board "155"]

1. e4 {[%clk 0:02:55]}  e5 {[%clk 0:02:58]} 2. Nf3 {[%clk 0:02:53]}  Nf6 {[%clk 0:02:58]} 3. Nxe5 {[%clk 0:02:50]}  Nxe4 {[%clk 0:02:57]} 4. d4 {[%clk 0:02:47]}  d5 {[%clk 0:02:55]} 5. Bd3 {[%clk 0:02:44]}  Nd7 {[%clk 0:02:55]} 6. O-O {[%clk 0:02:43]}  Bd6 {[%clk 0:02:53]} 7. Bf4 {[%clk 0:02:39]}  O-O {[%clk 0:02:53]} 8. Nd2 {[%clk 0:02:36]}  f5 {[%clk 0:02:51]} 9. f3 {[%clk 0:02:32]}  Nxd2 {[%clk 0:02:49]} 10. Qxd2 {[%clk 0:02:31]}  c5 {[%clk 0:02:49]} 11. Rae1 {[%clk 0:02:27]}  cxd4 {[%clk 0:01:48]} 12. Kh1 {[%clk 0:02:18]}  Qc7 {[%clk 0:01:38]} 13. Qe2 {[%clk 0:01:31]}  Re8 {[%clk 0:01:26]} 14. Bxf5 {[%clk 0:01:31]}  Nxe5 {[%clk 0:01:20]} 15. Bxc8 {[%clk 0:01:22]}  Raxc8 {[%clk 0:01:19]} 0-1


[Site "https://www.chess.com"]

[Event "Titled Tuesday Blitz June 20 Early 2023"]
[White "Skiadopoulos, Nikolaos"]
[Black "Kiseleva, Arina"]
[WhiteFideId "4200772"]
[BlackFideId "4164989"]
[WhiteElo "2022"]
[BlackElo "1701"]
[Result "1-0"]
[Round "9"]
[TimeControl "180+2"]
[Date "2023.06.20"]
[WhiteClock "0:01:13"]
[BlackClock "0:00:24"]
[Board "156"]

1. e4 {[%clk 0:03:00]}  c6 {[%clk 0:02:58]} 2. d4 {[%clk 0:02:59]}  d5 {[%clk 0:02:57]} 3. e5 {[%clk 0:02:59]}  Bf5 {[%clk 0:02:57]} 4. Ne2 {[%clk 0:02:59]}  e6 {[%clk 0:02:48]} 5. Nf4 {[%clk 0:02:58]}  h5 {[%clk 0:02:43]} 6. Nxh5 {[%clk 0:02:53]}  c5 {[%clk 0:02:43]} 7. Ng3 {[%clk 0:02:51]}  Bg6 {[%clk 0:02:41]} 8. c3 {[%clk 0:02:41]}  Nc6 {[%clk 0:02:40]} 9. Bb5 {[%clk 0:02:40]}  Qb6 {[%clk 0:02:39]} 10. a4 {[%clk 0:02:31]}  a6 {[%clk 0:02:38]} 11. Bxc6+ {[%clk 0:02:27]}  bxc6 {[%clk 0:02:38]} 12. a5 {[%clk 0:02:26]}  Qb7 {[%clk 0:02:13]} 13. dxc5 {[%clk 0:02:22]}  Bxc5 {[%clk 0:02:12]} 14. b4 {[%clk 0:02:22]}  Ba7 {[%clk 0:02:05]} 15. h4 {[%clk 0:02:15]}  Ne7 {[%clk 0:02:02]} 16. h5 {[%clk 0:02:14]}  Bxb1 {[%clk 0:01:40]} 17. Rxb1 {[%clk 0:02:12]}  Rd8 {[%clk 0:01:26]} 18. Qg4 {[%clk 0:01:57]}  Kf8 {[%clk 0:01:18]} 19. h6 {[%clk 0:01:52]}  g6 {[%clk 0:00:59]} 20. h7 {[%clk 0:01:51]}  Qc7 {[%clk 0:00:59]} 21. Bh6+ {[%clk 0:01:45]}  Ke8 {[%clk 0:00:56]} 22. Bg7 {[%clk 0:01:45]}  Rxh7 {[%clk 0:00:44]} 23. Rxh7 {[%clk 0:01:44]}  Nf5 {[%clk 0:00:41]} 24. Nxf5 {[%clk 0:01:42]}  exf5 {[%clk 0:00:41]} 25. Qg5 {[%clk 0:01:38]}  d4 {[%clk 0:00:41]} 26. Rh8+ {[%clk 0:01:35]}  Kd7 {[%clk 0:00:41]} 27. Rxd8+ {[%clk 0:01:35]}  Qxd8 {[%clk 0:00:42]} 28. Qxd8+ {[%clk 0:01:34]}  Kxd8 {[%clk 0:00:43]} 29. cxd4 {[%clk 0:01:33]}  Ke7 {[%clk 0:00:41]} 30. Bf6+ {[%clk 0:01:32]}  Ke6 {[%clk 0:00:41]} 31. Rd1 {[%clk 0:01:27]}  Kd5 {[%clk 0:00:40]} 32. Ke2 {[%clk 0:01:27]}  Kc4 {[%clk 0:00:39]} 33. Ke3 {[%clk 0:01:18]}  Kxb4 {[%clk 0:00:36]} 34. Rb1+ {[%clk 0:01:18]}  Kxa5 {[%clk 0:00:34]} 35. Bd8+ {[%clk 0:01:15]}  Ka4 {[%clk 0:00:33]} 36. Rb7 {[%clk 0:01:14]}  f4+ {[%clk 0:00:33]} 37. Ke4 {[%clk 0:01:13]}  f3 {[%clk 0:00:24]} 38. gxf3 {[%clk 0:01:13]} 1-0


[Site "https://www.chess.com"]

[Event "Titled Tuesday Blitz June 20 Early 2023"]
[White "Better_Chess_Faster"]
[Black "Cardenas Carbajal, Nilson"]
[BlackFideId "8401128"]
[WhiteElo "2010"]
[BlackElo "1972"]
[Result "0-1"]
[Round "9"]
[TimeControl "180+2"]
[Date "2023.06.20"]
[WhiteClock "0:00:00"]
[BlackClock "0:00:13"]
[Board "159"]

1. e4 {[%clk 0:03:00]}  c5 {[%clk 0:02:56]} 2. Nf3 {[%clk 0:03:00]}  d6 {[%clk 0:02:56]} 3. d4 {[%clk 0:03:00]}  cxd4 {[%clk 0:02:57]} 4. Nxd4 {[%clk 0:03:00]}  Nf6 {[%clk 0:02:57]} 5. Nc3 {[%clk 0:03:01]}  a6 {[%clk 0:02:58]} 6. Bg5 {[%clk 0:02:59]}  e6 {[%clk 0:02:58]} 7. f4 {[%clk 0:02:58]}  Be7 {[%clk 0:02:58]} 8. Qf3 {[%clk 0:02:55]}  h6 {[%clk 0:02:59]} 9. Bh4 {[%clk 0:02:54]}  Qc7 {[%clk 0:02:58]} 10. O-O-O {[%clk 0:02:52]}  Nbd7 {[%clk 0:02:57]} 11. Bd3 {[%clk 0:02:50]}  g5 {[%clk 0:02:56]} 12. fxg5 {[%clk 0:02:47]}  Ne5 {[%clk 0:02:55]} 13. Qe2 {[%clk 0:02:45]}  Nfg4 {[%clk 0:02:55]} 14. Bg3 {[%clk 0:02:42]}  hxg5 {[%clk 0:02:51]} 15. h3 {[%clk 0:02:42]}  Nf6 {[%clk 0:02:48]} 16. Rhf1 {[%clk 0:02:39]}  Bd7 {[%clk 0:02:45]} 17. Nf3 {[%clk 0:02:32]}  Nh5 {[%clk 0:02:30]} 18. Bh2 {[%clk 0:02:27]}  f6 {[%clk 0:02:03]} 19. Kb1 {[%clk 0:02:22]}  Rc8 {[%clk 0:02:00]} 20. Nxe5 {[%clk 0:02:13]}  dxe5 {[%clk 0:01:59]} 21. Qf3 {[%clk 0:02:05]}  Nf4 {[%clk 0:01:57]} 22. Bxf4 {[%clk 0:02:02]}  gxf4 {[%clk 0:01:48]} 23. Qg4 {[%clk 0:02:01]}  b5 {[%clk 0:00:56]} 24. Qg6+ {[%clk 0:01:52]}  Kf8 {[%clk 0:00:53]} 25. g3 {[%clk 0:01:43]}  Be8 {[%clk 0:00:49]} 26. Qg4 {[%clk 0:01:38]}  Rg8 {[%clk 0:00:47]} 27. Qxe6 {[%clk 0:01:33]}  Rxg3 {[%clk 0:00:46]} 28. Nd5 {[%clk 0:01:21]}  Qd7 {[%clk 0:00:41]} 29. Qxa6 {[%clk 0:01:13]}  Qc6 {[%clk 0:00:37]} 30. Qxb5 {[%clk 0:01:02]}  Qxb5 {[%clk 0:00:31]} 31. Bxb5 {[%clk 0:01:01]}  Bxb5 {[%clk 0:00:31]} 32. Rh1 {[%clk 0:00:51]}  Be2 {[%clk 0:00:27]} 33. Rd2 {[%clk 0:00:41]}  Bf3 {[%clk 0:00:26]} 34. Re1 {[%clk 0:00:39]}  Bxe4 {[%clk 0:00:24]} 35. Nxe7 {[%clk 0:00:34]}  Kxe7 {[%clk 0:00:24]} 36. a4 {[%clk 0:00:31]}  Bf5 {[%clk 0:00:22]} 37. h4 {[%clk 0:00:30]}  f3 {[%clk 0:00:21]} 38. a5 {[%clk 0:00:23]}  Rg2 {[%clk 0:00:21]} 39. Rxg2 {[%clk 0:00:16]}  fxg2 {[%clk 0:00:21]} 40. Rg1 {[%clk 0:00:16]}  Rxc2 {[%clk 0:00:19]} 41. Ka2 {[%clk 0:00:13]}  Be6+ {[%clk 0:00:17]} 42. Ka3 {[%clk 0:00:13]}  Bd5 {[%clk 0:00:17]} 43. b4 {[%clk 0:00:11]}  Rf2 {[%clk 0:00:17]} 44. a6 {[%clk 0:00:10]}  Rf1 {[%clk 0:00:16]} 45. Rxg2 {[%clk 0:00:03]}  Bxg2 {[%clk 0:00:16]} 46. b5 {[%clk 0:00:02]}  e4 {[%clk 0:00:13]} 47. b6 {[%clk 0:00:00]}  e3 {[%clk 0:00:13]} 0-1


[Site "https://www.chess.com"]

[Event "Titled Tuesday Blitz June 20 Early 2023"]
[White "Maluco_do_Natal_00"]
[Black "Freile Martin, Javier"]
[BlackFideId "3600165"]
[WhiteElo "2095"]
[BlackElo "2320"]
[Result "0-1"]
[Round "9"]
[TimeControl "180+2"]
[Date "2023.06.20"]
[WhiteClock "0:00:00"]
[BlackClock "0:00:05"]
[Board "160"]

1. e4 {[%clk 0:03:00]}  c5 {[%clk 0:02:59]} 2. Nf3 {[%clk 0:02:59]}  d6 {[%clk 0:02:59]} 3. d4 {[%clk 0:03:00]}  cxd4 {[%clk 0:02:59]} 4. Nxd4 {[%clk 0:03:01]}  Nf6 {[%clk 0:02:59]} 5. Nc3 {[%clk 0:03:01]}  Bd7 {[%clk 0:02:59]} 6. Be3 {[%clk 0:02:59]}  Nc6 {[%clk 0:02:57]} 7. f3 {[%clk 0:02:57]}  h5 {[%clk 0:02:55]} 8. Qd2 {[%clk 0:02:56]}  a6 {[%clk 0:02:53]} 9. Bc4 {[%clk 0:02:45]}  e6 {[%clk 0:02:53]} 10. Bb3 {[%clk 0:02:42]}  Rc8 {[%clk 0:02:51]} 11. h3 {[%clk 0:02:38]}  h4 {[%clk 0:02:50]} 12. O-O-O {[%clk 0:02:30]}  Ne5 {[%clk 0:02:44]} 13. Kb1 {[%clk 0:02:25]}  b5 {[%clk 0:02:41]} 14. a3 {[%clk 0:02:03]}  Be7 {[%clk 0:02:31]} 15. f4 {[%clk 0:01:56]}  Rxc3 {[%clk 0:02:30]} 16. bxc3 {[%clk 0:01:37]}  Nxe4 {[%clk 0:02:23]} 17. Qe1 {[%clk 0:01:35]}  Nc6 {[%clk 0:02:16]} 18. Bc1 {[%clk 0:01:16]}  d5 {[%clk 0:02:10]} 19. f5 {[%clk 0:00:47]}  Qa5 {[%clk 0:01:57]} 20. Bb2 {[%clk 0:00:46]}  Bxa3 {[%clk 0:01:42]} 21. fxe6 {[%clk 0:00:41]}  fxe6 {[%clk 0:01:41]} 22. Rf1 {[%clk 0:00:29]}  Nxd4 {[%clk 0:01:32]} 23. Rxd4 {[%clk 0:00:15]}  Bxb2 {[%clk 0:00:53]} 24. Kxb2 {[%clk 0:00:14]}  Rf8 {[%clk 0:00:51]} 25. Rxf8+ {[%clk 0:00:14]}  Kxf8 {[%clk 0:00:51]} 26. Rxe4 {[%clk 0:00:13]}  dxe4 {[%clk 0:00:50]} 27. Qxe4 {[%clk 0:00:14]}  Qd8 {[%clk 0:00:41]} 28. Bxe6 {[%clk 0:00:12]}  Bxe6 {[%clk 0:00:20]} 29. Qxe6 {[%clk 0:00:12]}  Qf6 {[%clk 0:00:20]} 30. Qc8+ {[%clk 0:00:09]}  Kf7 {[%clk 0:00:20]} 31. Qb7+ {[%clk 0:00:07]}  Kg6 {[%clk 0:00:18]} 32. Qe4+ {[%clk 0:00:07]}  Kf7 {[%clk 0:00:19]} 33. Qb7+ {[%clk 0:00:06]}  Kg8 {[%clk 0:00:18]} 34. Qa8+ {[%clk 0:00:06]}  Kh7 {[%clk 0:00:18]} 35. Qe4+ {[%clk 0:00:06]}  g6 {[%clk 0:00:18]} 36. Qb7+ {[%clk 0:00:06]}  Kh6 {[%clk 0:00:18]} 37. Qe4 {[%clk 0:00:05]}  a5 {[%clk 0:00:17]} 38. Qe3+ {[%clk 0:00:03]}  g5 {[%clk 0:00:16]} 39. Qc5 {[%clk 0:00:02]}  b4 {[%clk 0:00:16]} 40. Qxa5 {[%clk 0:00:02]}  Qxc3+ {[%clk 0:00:14]} 41. Kb1 {[%clk 0:00:01]}  Qd4 {[%clk 0:00:10]} 42. Qa6+ {[%clk 0:00:01]}  Kg7 {[%clk 0:00:09]} 43. Qb7+ {[%clk 0:00:01]}  Kf6 {[%clk 0:00:09]} 44. Qa6+ {[%clk 0:00:01]}  Kf5 {[%clk 0:00:07]} 45. Qc8+ {[%clk 0:00:00]}  Ke5 {[%clk 0:00:05]} 0-1


[Site "https://www.chess.com"]

[Event "Titled Tuesday Blitz June 20 Early 2023"]
[White "campochess"]
[Black "Lohani, Sujana"]
[BlackFideId "12311987"]
[WhiteElo "2169"]
[BlackElo "1718"]
[Result "1-0"]
[Round "9"]
[TimeControl "180+2"]
[Date "2023.06.20"]
[WhiteClock "0:00:21"]
[BlackClock "0:00:00"]
[Board "162"]

1. e4 {[%clk 0:02:59]}  c6 {[%clk 0:02:59]} 2. d4 {[%clk 0:02:58]}  d5 {[%clk 0:02:58]} 3. exd5 {[%clk 0:02:58]}  cxd5 {[%clk 0:02:58]} 4. c4 {[%clk 0:02:58]}  Nf6 {[%clk 0:02:52]} 5. Nc3 {[%clk 0:02:58]}  Nc6 {[%clk 0:02:50]} 6. Bg5 {[%clk 0:02:57]}  dxc4 {[%clk 0:02:46]} 7. d5 {[%clk 0:02:48]}  Ne5 {[%clk 0:02:35]} 8. Bxc4 {[%clk 0:02:47]}  Nxc4 {[%clk 0:02:04]} 9. Qa4+ {[%clk 0:02:45]}  Bd7 {[%clk 0:02:04]} 10. Qxc4 {[%clk 0:02:45]}  Rc8 {[%clk 0:02:03]} 11. Qd3 {[%clk 0:02:44]}  Qb6 {[%clk 0:02:02]} 12. Nge2 {[%clk 0:02:32]}  g6 {[%clk 0:01:58]} 13. Be3 {[%clk 0:02:28]}  Qa5 {[%clk 0:01:46]} 14. O-O {[%clk 0:02:24]}  Bg7 {[%clk 0:01:45]} 15. d6 {[%clk 0:02:24]}  e6 {[%clk 0:01:42]} 16. Rfd1 {[%clk 0:02:14]}  O-O {[%clk 0:01:41]} 17. a3 {[%clk 0:02:10]}  Rfd8 {[%clk 0:01:31]} 18. Rac1 {[%clk 0:02:09]}  Bc6 {[%clk 0:01:27]} 19. Qb1 {[%clk 0:01:45]}  Bf8 {[%clk 0:01:18]} 20. b4 {[%clk 0:01:26]}  Qxa3 {[%clk 0:01:16]} 21. Bd4 {[%clk 0:01:20]}  Nd5 {[%clk 0:01:13]} 22. b5 {[%clk 0:01:20]}  Nxc3 {[%clk 0:01:11]} 23. Rxc3 {[%clk 0:01:14]}  Qxd6 {[%clk 0:01:02]} 24. bxc6 {[%clk 0:01:13]}  Rxc6 {[%clk 0:01:02]} 25. Rxc6 {[%clk 0:01:12]}  Qxc6 {[%clk 0:01:02]} 26. Ba1 {[%clk 0:00:56]}  Rc8 {[%clk 0:00:58]} 27. Qb2 {[%clk 0:00:52]}  e5 {[%clk 0:00:47]} 28. Qxe5 {[%clk 0:00:51]}  f6 {[%clk 0:00:47]} 29. Qd5+ {[%clk 0:00:45]}  Qxd5 {[%clk 0:00:45]} 30. Rxd5 {[%clk 0:00:45]}  Rc2 {[%clk 0:00:28]} 31. Kf1 {[%clk 0:00:44]}  Kf7 {[%clk 0:00:18]} 32. Rd1 {[%clk 0:00:43]}  Bc5 {[%clk 0:00:16]} 33. Bd4 {[%clk 0:00:39]}  Be7 {[%clk 0:00:14]} 34. Bxa7 {[%clk 0:00:34]}  b5 {[%clk 0:00:13]} 35. Nd4 {[%clk 0:00:30]}  Rb2 {[%clk 0:00:11]} 36. Nc6 {[%clk 0:00:27]}  b4 {[%clk 0:00:05]} 37. Rd7 {[%clk 0:00:26]}  Rb1+ {[%clk 0:00:04]} 38. Ke2 {[%clk 0:00:25]}  b3 {[%clk 0:00:03]} 39. Rxe7+ {[%clk 0:00:23]}  Kg8 {[%clk 0:00:03]} 40. Rb7 {[%clk 0:00:23]}  b2 {[%clk 0:00:00]} 41. Bd4 {[%clk 0:00:21]} 1-0


[Site "https://www.chess.com"]

[Event "Titled Tuesday Blitz June 20 Early 2023"]
[White "Vargas, Mauricio"]
[Black "zano2023"]
[WhiteFideId "4404572"]
[WhiteElo "1986"]
[BlackElo "2162"]
[Result "0-1"]
[Round "9"]
[TimeControl "180+2"]
[Date "2023.06.20"]
[WhiteClock "0:00:00"]
[BlackClock "0:00:23"]
[Board "163"]

1. e3 {[%clk 0:02:18]}  d6 {[%clk 0:02:57]} 2. Nf3 {[%clk 0:02:17]}  e5 {[%clk 0:02:57]} 3. b3 {[%clk 0:02:17]}  Nf6 {[%clk 0:02:57]} 4. Bb2 {[%clk 0:02:18]}  Bg4 {[%clk 0:02:54]} 5. d3 {[%clk 0:02:11]}  Be7 {[%clk 0:02:51]} 6. h3 {[%clk 0:02:11]}  Bh5 {[%clk 0:02:50]} 7. g4 {[%clk 0:02:11]}  Bg6 {[%clk 0:02:50]} 8. Bg2 {[%clk 0:02:08]}  c6 {[%clk 0:02:50]} 9. O-O {[%clk 0:02:08]}  Nbd7 {[%clk 0:02:48]} 10. c4 {[%clk 0:01:45]}  h6 {[%clk 0:02:41]} 11. Kh1 {[%clk 0:01:38]}  Nf8 {[%clk 0:02:40]} 12. Nc3 {[%clk 0:01:35]}  Ne6 {[%clk 0:02:39]} 13. Ne2 {[%clk 0:01:34]}  Nd7 {[%clk 0:02:23]} 14. Ng3 {[%clk 0:01:34]}  O-O {[%clk 0:02:10]} 15. Qe1 {[%clk 0:01:23]}  Bf6 {[%clk 0:02:03]} 16. Qd2 {[%clk 0:01:20]}  d5 {[%clk 0:02:01]} 17. e4 {[%clk 0:01:12]}  d4 {[%clk 0:01:57]} 18. Nf5 {[%clk 0:01:11]}  Nf4 {[%clk 0:01:55]} 19. Bc1 {[%clk 0:01:05]}  Nc5 {[%clk 0:01:43]} 20. Ne1 {[%clk 0:01:01]}  Nce6 {[%clk 0:01:41]} 21. Rg1 {[%clk 0:00:52]}  Bg5 {[%clk 0:01:40]} 22. Qc2 {[%clk 0:00:47]}  c5 {[%clk 0:01:31]} 23. Bf1 {[%clk 0:00:45]}  Bh7 {[%clk 0:01:24]} 24. Nf3 {[%clk 0:00:38]}  Bf6 {[%clk 0:01:21]} 25. h4 {[%clk 0:00:35]}  Qc7 {[%clk 0:00:49]} 26. g5 {[%clk 0:00:33]}  hxg5 {[%clk 0:00:49]} 27. hxg5 {[%clk 0:00:33]}  Bd8 {[%clk 0:00:46]} 28. Bxf4 {[%clk 0:00:27]}  Nxf4 {[%clk 0:00:45]} 29. Rg4 {[%clk 0:00:19]}  Bg6 {[%clk 0:00:44]} 30. Bg2 {[%clk 0:00:10]}  Nxg2 {[%clk 0:00:38]} 31. Rxg2 {[%clk 0:00:09]}  Bxf5 {[%clk 0:00:32]} 32. exf5 {[%clk 0:00:09]}  e4 {[%clk 0:00:30]} 33. Nh4 {[%clk 0:00:05]}  Qf4 {[%clk 0:00:29]} 34. g6 {[%clk 0:00:04]}  Qxh4+ {[%clk 0:00:27]} 35. Rh2 {[%clk 0:00:03]}  Qf4 {[%clk 0:00:25]} 36. Rg1 {[%clk 0:00:03]}  fxg6 {[%clk 0:00:24]} 37. fxg6 {[%clk 0:00:00]}  Qf3+ {[%clk 0:00:23]} 0-1


[Site "https://www.chess.com"]

[Event "Titled Tuesday Blitz June 20 Early 2023"]
[White "Kollars, Dmitrij"]
[Black "Pranav, V"]
[WhiteFideId "12909572"]
[BlackFideId "25060783"]
[WhiteElo "2584"]
[BlackElo "2533"]
[Result "0-1"]
[Round "10"]
[TimeControl "180+2"]
[Date "2023.06.20"]
[WhiteClock "0:00:04"]
[BlackClock "0:00:05"]
[Board "3"]

1. e4 {[%clk 0:03:00]}  e5 {[%clk 0:02:59]} 2. Nf3 {[%clk 0:03:01]}  Nc6 {[%clk 0:03:00]} 3. Bb5 {[%clk 0:03:01]}  a6 {[%clk 0:03:01]} 4. Ba4 {[%clk 0:03:02]}  Nf6 {[%clk 0:03:01]} 5. Nc3 {[%clk 0:03:02]}  Be7 {[%clk 0:02:59]} 6. O-O {[%clk 0:03:00]}  O-O {[%clk 0:02:52]} 7. Bxc6 {[%clk 0:02:57]}  dxc6 {[%clk 0:02:52]} 8. d3 {[%clk 0:02:58]}  Nd7 {[%clk 0:02:51]} 9. h3 {[%clk 0:02:55]}  f6 {[%clk 0:02:51]} 10. Nh4 {[%clk 0:02:52]}  Re8 {[%clk 0:02:47]} 11. Nf5 {[%clk 0:02:46]}  Nf8 {[%clk 0:02:46]} 12. f4 {[%clk 0:02:34]}  exf4 {[%clk 0:02:19]} 13. Bxf4 {[%clk 0:02:35]}  Ng6 {[%clk 0:02:19]} 14. Be3 {[%clk 0:02:29]}  Bf8 {[%clk 0:02:15]} 15. Qg4 {[%clk 0:02:18]}  Be6 {[%clk 0:02:14]} 16. Ne2 {[%clk 0:02:10]}  Qc8 {[%clk 0:01:48]} 17. h4 {[%clk 0:02:02]}  Bxf5 {[%clk 0:01:18]} 18. Rxf5 {[%clk 0:02:02]}  Ne7 {[%clk 0:01:18]} 19. Rf4 {[%clk 0:01:56]}  Nd5 {[%clk 0:01:01]} 20. Qxc8 {[%clk 0:01:43]}  Raxc8 {[%clk 0:01:00]} 21. Rf3 {[%clk 0:01:43]}  Nxe3 {[%clk 0:00:52]} 22. Rxe3 {[%clk 0:01:44]}  Bc5 {[%clk 0:00:52]} 23. d4 {[%clk 0:01:45]}  Bd6 {[%clk 0:00:53]} 24. Kf2 {[%clk 0:01:27]}  Re7 {[%clk 0:00:47]} 25. Kf3 {[%clk 0:01:25]}  Rce8 {[%clk 0:00:45]} 26. g4 {[%clk 0:01:24]}  c5 {[%clk 0:00:43]} 27. d5 {[%clk 0:01:21]}  c4 {[%clk 0:00:42]} 28. Nd4 {[%clk 0:01:15]}  Bc5 {[%clk 0:00:41]} 29. Rd1 {[%clk 0:01:15]}  Re5 {[%clk 0:00:40]} 30. Re2 {[%clk 0:01:12]}  g6 {[%clk 0:00:37]} 31. Ne6 {[%clk 0:01:11]}  Bd6 {[%clk 0:00:33]} 32. Rd4 {[%clk 0:00:58]}  b5 {[%clk 0:00:33]} 33. b3 {[%clk 0:00:54]}  cxb3 {[%clk 0:00:19]} 34. cxb3 {[%clk 0:00:55]}  h5 {[%clk 0:00:20]} 35. b4 {[%clk 0:00:32]}  hxg4+ {[%clk 0:00:19]} 36. Kxg4 {[%clk 0:00:33]}  Kf7 {[%clk 0:00:17]} 37. Rc2 {[%clk 0:00:28]}  Rh8 {[%clk 0:00:17]} 38. Nf4 {[%clk 0:00:17]}  g5 {[%clk 0:00:11]} 39. Nd3 {[%clk 0:00:11]}  Rxh4+ {[%clk 0:00:11]} 40. Kf3 {[%clk 0:00:11]}  Re8 {[%clk 0:00:11]} 41. Rf2 {[%clk 0:00:08]}  Kg6 {[%clk 0:00:10]} 42. Ke3 {[%clk 0:00:08]}  Rh3+ {[%clk 0:00:07]} 43. Kd2 {[%clk 0:00:09]}  Reh8 {[%clk 0:00:06]} 44. e5 {[%clk 0:00:07]}  fxe5 {[%clk 0:00:07]} 45. Re4 {[%clk 0:00:08]}  Rh2 {[%clk 0:00:08]} 46. Ke2 {[%clk 0:00:06]}  Rxf2+ {[%clk 0:00:07]} 47. Nxf2 {[%clk 0:00:07]}  Kf5 {[%clk 0:00:07]} 48. Rg4 {[%clk 0:00:05]}  Rh4 {[%clk 0:00:07]} 49. Rg1 {[%clk 0:00:05]}  Rxb4 {[%clk 0:00:07]} 50. Ng4 {[%clk 0:00:04]}  Rxg4 {[%clk 0:00:05]} 0-1


[Site "https://www.chess.com"]

[Event "Titled Tuesday Blitz June 20 Early 2023"]
[White "Gurel, Ediz"]
[Black "Donchenko, Alexander"]
[WhiteFideId "44507356"]
[BlackFideId "24603295"]
[WhiteElo "2352"]
[BlackElo "2554"]
[Result "1-0"]
[Round "10"]
[TimeControl "180+2"]
[Date "2023.06.20"]
[WhiteClock "0:01:04"]
[BlackClock "0:00:56"]
[Board "11"]

1. e4 {[%clk 0:03:00]}  c6 {[%clk 0:03:00]} 2. d4 {[%clk 0:02:59]}  d5 {[%clk 0:03:01]} 3. Nc3 {[%clk 0:03:00]}  dxe4 {[%clk 0:03:01]} 4. Nxe4 {[%clk 0:03:01]}  Bf5 {[%clk 0:03:01]} 5. Nc5 {[%clk 0:03:01]}  b6 {[%clk 0:03:00]} 6. Nb3 {[%clk 0:03:01]}  e6 {[%clk 0:03:00]} 7. Nf3 {[%clk 0:03:01]}  Nf6 {[%clk 0:03:00]} 8. g3 {[%clk 0:03:00]}  Be4 {[%clk 0:02:56]} 9. Bg2 {[%clk 0:03:00]}  c5 {[%clk 0:02:56]} 10. O-O {[%clk 0:02:58]}  cxd4 {[%clk 0:02:53]} 11. Nbxd4 {[%clk 0:02:59]}  Nc6 {[%clk 0:02:51]} 12. Nxc6 {[%clk 0:02:57]}  Qxd1 {[%clk 0:02:47]} 13. Rxd1 {[%clk 0:02:58]}  Bxc6 {[%clk 0:02:47]} 14. Ne5 {[%clk 0:02:50]}  Bxg2 {[%clk 0:02:47]} 15. Kxg2 {[%clk 0:02:51]}  Rc8 {[%clk 0:02:47]} 16. c3 {[%clk 0:02:51]}  Bc5 {[%clk 0:02:45]} 17. a4 {[%clk 0:02:38]}  a6 {[%clk 0:02:39]} 18. Rb1 {[%clk 0:01:59]}  h6 {[%clk 0:02:31]} 19. b4 {[%clk 0:01:56]}  Be7 {[%clk 0:02:30]} 20. c4 {[%clk 0:01:56]}  Ne4 {[%clk 0:02:11]} 21. Rb3 {[%clk 0:01:47]}  Bd6 {[%clk 0:01:53]} 22. Re1 {[%clk 0:01:27]}  f5 {[%clk 0:01:42]} 23. Ng6 {[%clk 0:01:27]}  Rg8 {[%clk 0:01:41]} 24. f3 {[%clk 0:01:27]}  Kf7 {[%clk 0:01:36]} 25. fxe4 {[%clk 0:01:25]}  Kxg6 {[%clk 0:01:25]} 26. exf5+ {[%clk 0:01:26]}  Kxf5 {[%clk 0:01:24]} 27. Rf3+ {[%clk 0:01:24]}  Kg4 {[%clk 0:01:25]} 28. h3+ {[%clk 0:01:21]}  Kh5 {[%clk 0:01:24]} 29. g4+ {[%clk 0:01:13]}  Kh4 {[%clk 0:01:24]} 30. Rxe6 {[%clk 0:01:14]}  Rxc4 {[%clk 0:01:23]} 31. Be3 {[%clk 0:01:06]}  Rc2+ {[%clk 0:01:01]} 32. Bf2+ {[%clk 0:01:05]}  Rxf2+ {[%clk 0:01:00]} 33. Rxf2 {[%clk 0:01:06]}  Bxb4 {[%clk 0:01:00]} 34. Rf5 {[%clk 0:01:04]}  g6 {[%clk 0:00:56]} 35. Rxg6 {[%clk 0:01:04]} 1-0


[Site "https://www.chess.com"]